fUST/lending_fUST_20240826
["ID","MTS","AMOUNT","RATE_DAILY","PERIOD"]
[335945967,1724635840514,-500.0,0.00012439,2]
[335945969,1724635840524,-500.0,0.00012439,2]
[335945971,1724635840534,-1137.04,0.00012439,2]
[335945973,1724635840545,-1222.29,0.00012439,2]
[335945975,1724635840555,-500.0,0.00012439,2]
[335945977,1724635840565,-867.6,0.00012439,2]
[335945979,1724635840575,-925.48,0.00012439,2]
[335945981,1724635840585,-565.37,0.00012439,2]
[335945983,1724635840595,-659.12,0.00012439,2]
[335945985,1724635840605,-732.5,0.00012439,2]
[335945988,1724635840616,-500.0,0.00012439,2]
[335945990,1724635840626,-500.0,0.00012439,2]
[335945992,1724635840637,-829.94,0.00012439,2]
[335945994,1724635840647,-947.7,0.00012439,2]
[335945996,1724635840658,-500.0,0.00012439,2]
[335945998,1724635840667,-500.0,0.00012439,2]
[335946000,1724635840677,-1166.56,0.00012439,2]
[335946002,1724635840688,-638.51,0.00012439,2]
[335946004,1724635840699,-500.0,0.00012439,2]
[335946006,1724635840709,-1106.17,0.00012439,2]
[335946008,1724635840722,-500.0,0.00012439,2]
[335946010,1724635840731,-500.0,0.00012439,2]
[335946012,1724635840741,-500.0,0.00012439,2]
[335946014,1724635840751,-697.23,0.00012439,2]
[335946016,1724635840761,-500.0,0.00012439,2]
[335946018,1724635840771,-566.32102496,0.00012439,2]
[335946020,1724635840782,-569.01,0.00012439,2]
[335946022,1724635840791,-858.05,0.00012439,2]
[335946024,1724635840801,-500.0,0.00012439,2]
[335946026,1724635840810,-500.0,0.00012439,2]
[335946028,1724635840821,-661.53,0.00012439,2]
[335946030,1724635840830,-500.0,0.00012439,2]
[335946032,1724635840841,-840.38,0.00012439,2]
[335946034,1724635840851,-500.0,0.00012439,2]
[335946036,1724635840861,-981.8,0.00012439,2]
[335946038,1724635840871,-512.08,0.00012439,2]
[335946040,1724635840881,-520.36,0.00012439,2]
[335946043,1724635840892,-609.63,0.00012439,2]
[335946045,1724635840902,-574.52,0.00012439,2]
[335946047,1724635840912,-826.15,0.00012439,2]
[335946049,1724635840921,-807.29,0.00012439,2]
[335946051,1724635840931,-1829.89,0.00012439,2]
[335946053,1724635840941,-530.47,0.00012439,2]
[335946055,1724635840951,-817.67,0.00012439,2]
[335946057,1724635840960,-500.0,0.00012439,2]
[335946059,1724635840971,-531.7,0.00012439,2]
[335946061,1724635840982,-500.0,0.00012439,2]
[335946063,1724635840991,-716.93,0.00012439,2]
[335946065,1724635841001,-1475.7,0.00012439,2]
[335946067,1724635841011,-856.83,0.00012439,2]
[335946069,1724635841024,-1292.38,0.00012439,2]
[335946072,1724635841037,-500.0,0.00012439,2]
[335946074,1724635841048,-500.0,0.00012439,2]
[335946076,1724635841060,-686.58,0.00012439,2]
[335946078,1724635841069,-500.0,0.00012439,2]
[335946080,1724635841079,-500.0,0.00012439,2]
[335946082,1724635841089,-500.0,0.00012439,2]
[335946084,1724635841100,-500.0,0.00012439,2]
[335946087,1724635841109,-814.71,0.00012439,2]
[335946089,1724635841119,-665.94,0.00012439,2]
[335946091,1724635841128,-1009.07,0.00012439,2]
[335946093,1724635841138,-500.0,0.00012439,2]
[335946095,1724635841147,-2923.44,0.00012439,2]
[335946097,1724635841160,-500.0,0.00012439,2]
[335946099,1724635841170,-500.0,0.00012439,2]
[335946101,1724635841180,-500.0,0.00012439,2]
[335946103,1724635841190,-500.0,0.00012439,2]
[335946105,1724635841200,-500.0,0.00012439,2]
[335946107,1724635841210,-1143.43,0.00012439,2]
[335946109,1724635841220,-500.0,0.00012439,2]
[335946111,1724635841231,-558.61,0.00012439,2]
[335946113,1724635841243,-823.88,0.00012439,2]
[335946115,1724635841252,-913.32,0.00012439,2]
[335946117,1724635841262,-702.34,0.00012439,2]
[335946119,1724635841272,-500.0,0.00012439,2]
[335946121,1724635841282,-500.0,0.00012439,2]
[335946123,1724635841291,-779.49,0.00012439,2]
[335946125,1724635841301,-696.12,0.00012439,2]
[335946127,1724635841311,-1387.33,0.00012439,2]
[335946129,1724635841320,-500.0,0.00012439,2]
[335946130,1724635841330,-504.88609184,0.00012439,2]
[335946131,1724635841341,-503.79745424,0.00012439,2]
[335946132,1724635841353,-1093.92,0.00012439,2]
[335946133,1724635841365,-500.0,0.00012439,2]
[335946134,1724635841374,-978.65,0.00012439,2]
[335946135,1724635841384,-500.0,0.00012439,2]
[335946136,1724635841394,-651.81,0.00012439,2]
[335946137,1724635841404,-4901.1,0.00012439,2]
[335946138,1724635841414,-500.0,0.00012439,2]
[335946139,1724635841424,-500.0,0.00012439,2]
[335946140,1724635841434,-554.43,0.00012439,2]
[335946142,1724635841447,-918.57,0.00012439,2]
[335946143,1724635841458,-648.41,0.0001244,2]
[335946145,1724635841469,-560.45,0.0001244,2]
[335946146,1724635841479,-1097.76,0.0001244,2]
[335946147,1724635841489,-500.0,0.0001244,2]
[335946148,1724635841499,-814.49,0.0001244,2]
[335946149,1724635841508,-606.17,0.0001244,2]
[335946150,1724635841518,-500.0,0.0001244,2]
[335946151,1724635841527,-500.0,0.0001244,2]
[335946152,1724635841537,-776.14,0.0001244,2]
[335946153,1724635841547,-500.0,0.0001244,2]
[335946154,1724635841557,-699.82,0.0001244,2]
[335946155,1724635841566,-558.8,0.0001244,2]
[335946156,1724635841575,-500.0,0.0001244,2]
[335946157,1724635841584,-763.6,0.0001244,2]
[335946158,1724635841594,-578.01,0.0001244,2]
[335946159,1724635841603,-500.0,0.0001244,2]
[335946160,1724635841613,-500.0,0.0001244,2]
[335946161,1724635841622,-1198.35,0.0001244,2]
[335946162,1724635841632,-500.0,0.0001244,2]
[335946163,1724635841643,-500.0,0.0001244,2]
[335946164,1724635841652,-1067.01,0.0001244,2]
[335946165,1724635841662,-500.0,0.0001244,2]
[335946166,1724635841671,-500.0,0.0001244,2]
[335946167,1724635841681,-336.89363372,0.0001244,2]
[335946168,1724635841690,-565.71,0.0001244,2]
[335946169,1724635841700,-677.58,0.0001244,2]
[335946170,1724635841710,-502.85,0.0001244,2]
[335946171,1724635841721,-1103.28,0.0001244,2]
[335946172,1724635841731,-949.92,0.0001244,2]
[335946173,1724635841740,-869.49,0.0001244,2]
[335946174,1724635841750,-658.84,0.0001244,2]
[335946175,1724635841759,-550.77,0.0001244,2]
[335946176,1724635841769,-539.79,0.0001244,2]
[335946177,1724635841779,-952.56,0.0001244,2]
[335946178,1724635841788,-1028.87,0.0001244,2]
[335946179,1724635841798,-500.0,0.0001244,2]
[335946180,1724635841808,-819.48,0.0001244,2]
[335946181,1724635841817,-500.0,0.0001244,2]
[335946182,1724635841827,-500.0,0.0001244,2]
[335946183,1724635841836,-500.0,0.0001244,2]
[335946184,1724635841846,-500.0,0.0001244,2]
[335946185,1724635841856,-500.0,0.0001244,2]
[335946186,1724635841865,-500.0,0.0001244,2]
[335946187,1724635841875,-500.0,0.0001244,2]
[335946188,1724635841884,-527.47,0.0001244,2]
[335946189,1724635841895,-500.0,0.0001244,2]
[335946190,1724635841904,-805.63,0.0001244,2]
[335946191,1724635841913,-757.5,0.0001244,2]
[335946192,1724635841922,-1144.68,0.0001244,2]
[335946193,1724635841931,-500.0,0.0001244,2]
[335946194,1724635841940,-613.42,0.0001244,2]
[335946195,1724635841949,-517.85,0.0001244,2]
[335946196,1724635841959,-1043.84,0.0001244,2]
[335946197,1724635841971,-742.04,0.0001244,2]
[335946198,1724635841981,-813.43,0.0001244,2]
[335946199,1724635841991,-500.0,0.0001244,2]
[335946200,1724635842000,-891.79,0.0001244,2]
[335946201,1724635842009,-666.08,0.0001244,2]
[335946202,1724635842018,-512.1,0.0001244,2]
[335946203,1724635842027,-521.35,0.0001244,2]
[335946204,1724635842037,-650.74,0.0001244,2]
[335946205,1724635842046,-809.7,0.0001244,2]
[335946206,1724635842055,-1032.55,0.0001244,2]
[335946207,1724635842064,-551.98,0.0001244,2]
[335946208,1724635842074,-189.83619243,0.000125,2]
[335946209,1724635842083,-88888.0,0.00012528,2]
[335946210,1724635842092,-3094.53366029,0.00012551,2]
[335946211,1724635842102,-1393.28895606,0.00012551,2]
[335946212,1724635842112,-7271.87654528,0.00012571,2]
[335946213,1724635842122,-151.0,0.00012618,2]
[335946214,1724635842133,-151.0,0.00012618,2]
[335946215,1724635842145,-500.0,0.00012628,2]
[335946216,1724635842159,-502.47,0.00012628,2]
[335946217,1724635842169,-500.0,0.00012628,2]
[335946218,1724635842179,-500.0,0.00012628,2]
[335946219,1724635842188,-573.23,0.00012628,2]
[335946220,1724635842200,-500.0,0.00012628,2]
[335946221,1724635842210,-500.0,0.00012628,2]
[335946222,1724635842221,-500.0,0.00012628,2]
[335946223,1724635842232,-500.0,0.00012628,2]
[335946224,1724635842245,-500.0,0.00012628,2]
[335946225,1724635842255,-500.0,0.00012628,2]
[335946226,1724635842264,-645.28,0.00012628,2]
[335946227,1724635842274,-589.55,0.00012628,2]
[335946228,1724635842283,-500.0,0.00012628,2]
[335946229,1724635842293,-698.23,0.00012628,2]
[335946230,1724635842303,-500.0,0.00012628,2]
[335946231,1724635842313,-734.28,0.00012628,2]
[335946232,1724635842322,-500.0,0.00012628,2]
[335946233,1724635842332,-500.0,0.00012628,2]
[335946234,1724635842342,-500.0,0.00012628,2]
[335946235,1724635842351,-500.0,0.00012628,2]
[335946236,1724635842361,-507.1332298,0.00012628,2]
[335946237,1724635842371,-500.0,0.00012628,2]
[335946238,1724635842381,-637.23,0.00012628,2]
[335946239,1724635842390,-500.0,0.00012628,2]
[335946240,1724635842400,-519.61,0.00012628,2]
[335946241,1724635842409,-500.0,0.00012628,2]
[335946242,1724635842418,-500.0,0.00012628,2]
[335946243,1724635842428,-500.0,0.00012628,2]
[335946244,1724635842437,-500.0,0.00012628,2]
[335946245,1724635842446,-500.0,0.00012628,2]
[335946246,1724635842455,-500.0,0.00012628,2]
[335946247,1724635842468,-500.0,0.00012628,2]
[335946248,1724635842478,-765.15,0.00012628,2]
[335946249,1724635842487,-500.0,0.00012628,2]
[335946250,1724635842498,-537.28,0.00012628,2]
[335946251,1724635842508,-500.0,0.00012628,2]
[335946252,1724635842520,-690.17,0.00012628,2]
[335946253,1724635842532,-554.89,0.00012628,2]
[335946254,1724635842541,-500.0,0.00012628,2]
[335946255,1724635842551,-500.0,0.00012628,2]
[335946256,1724635842562,-570.82,0.00012628,2]
[335946257,1724635842571,-637.39,0.00012628,2]
[335946258,1724635842581,-500.0,0.00012628,2]
[335946259,1724635842590,-500.0,0.00012628,2]
[335946260,1724635842599,-500.0,0.00012628,2]
[335946261,1724635842608,-640.03,0.00012628,2]
[335946262,1724635842618,-564.91,0.00012628,2]
[335946263,1724635842628,-500.0,0.00012628,2]
[335946264,1724635842638,-500.0,0.00012628,2]
[335946265,1724635842647,-500.0,0.00012628,2]
[335946266,1724635842657,-500.0,0.00012628,2]
[335946267,1724635842666,-887.48,0.00012628,2]
[335946268,1724635842675,-1311.36,0.00012628,2]
[335946269,1724635842685,-500.0,0.00012628,2]
[335946270,1724635842694,-500.0,0.00012628,2]
[335946271,1724635842704,-500.0,0.00012628,2]
[335946272,1724635842713,-500.0,0.00012628,2]
[335946273,1724635842728,-500.0,0.00012628,2]
[335946274,1724635842738,-500.0,0.00012628,2]
[335946275,1724635842753,-500.0,0.00012628,2]
[335946276,1724635842763,-500.0,0.00012628,2]
[335946277,1724635842772,-651.21,0.00012628,2]
[335946278,1724635842782,-500.0,0.00012628,2]
[335946279,1724635842793,-500.0,0.00012628,2]
[335946280,1724635842803,-500.0,0.00012628,2]
[335946281,1724635842812,-500.0,0.00012628,2]
[335946282,1724635842821,-500.0,0.00012628,2]
[335946283,1724635842830,-500.0,0.00012628,2]
[335946284,1724635842840,-500.0,0.00012628,2]
[335946285,1724635842849,-500.0,0.00012628,2]
[335946286,1724635842859,-500.0,0.00012628,2]
[335946287,1724635842869,-500.0,0.00012628,2]
[335946288,1724635842879,-500.0,0.00012628,2]
[335946289,1724635842888,-500.0,0.00012628,2]
[335946290,1724635842898,-500.0,0.00012628,2]
[335946291,1724635842908,-383.96603676,0.00012628,2]
[335946292,1724635842919,-500.0,0.00012628,2]
[335946293,1724635842930,-500.0,0.00012628,2]
[335946294,1724635842940,-500.0,0.00012628,2]
[335946295,1724635842949,-1025.95,0.00012628,2]
[335946296,1724635842958,-500.0,0.00012628,2]
[335946297,1724635842967,-500.0,0.00012628,2]
[335946298,1724635842976,-500.0,0.00012628,2]
[335946299,1724635842986,-500.0,0.00012628,2]
[335946300,1724635842995,-500.0,0.00012628,2]
[335946301,1724635843003,-1060.72,0.00012628,2]
[335946302,1724635843013,-500.0,0.00012628,2]
[335946303,1724635843022,-500.0,0.00012628,2]
[335946304,1724635843031,-500.0,0.00012628,2]
[335946305,1724635843041,-500.0,0.00012628,2]
[335946306,1724635843052,-1185.23,0.00012628,2]
[335946307,1724635843062,-500.0,0.00012628,2]
[335946308,1724635843072,-500.0,0.00012628,2]
[335946309,1724635843083,-486.36506163,0.00012628,2]
[335946310,1724635843092,-635.45,0.00012628,2]
[335946311,1724635843101,-1172.55,0.00012628,2]
[335946312,1724635843111,-500.0,0.00012628,2]
[335946313,1724635843121,-500.0,0.00012628,2]
[335946314,1724635843131,-500.0,0.00012628,2]
[335946315,1724635843140,-253.15107575,0.00012628,2]
[335946316,1724635843149,-500.0,0.00012628,2]
[335946317,1724635843163,-716.76,0.00012628,2]
[335946318,1724635843172,-500.0,0.00012628,2]
[335946319,1724635843181,-640.61,0.00012628,2]
[335946320,1724635843191,-500.0,0.00012628,2]
[335946321,1724635843203,-500.0,0.00012628,2]
[335946322,1724635843212,-500.0,0.00012628,2]
[335946323,1724635843229,-500.0,0.00012628,2]
[335946324,1724635843241,-645.11,0.00012628,2]
[335946325,1724635843252,-1322.38,0.00012628,2]
[335946326,1724635843263,-500.0,0.00012628,2]
[335946327,1724635843272,-524.14,0.00012628,2]
[335946328,1724635843282,-500.0,0.00012628,2]
[335946329,1724635843291,-500.0,0.00012628,2]
[335946330,1724635843300,-742.81,0.00012628,2]
[335946331,1724635843310,-600.2,0.00012628,2]
[335946332,1724635843320,-500.0,0.00012628,2]
[335946333,1724635843332,-500.0,0.00012628,2]
[335946334,1724635843343,-547.55,0.00012628,2]
[335946337,1724635843352,-529.16486249,0.00012628,2]
[335946339,1724635843363,-500.0,0.00012628,2]
[335946340,1724635843372,-643.46,0.00012628,2]
[335946342,1724635843382,-154.55266912,0.00012628,2]
[335946343,1724635843391,-500.0,0.00012628,2]
[335946344,1724635843402,-500.0,0.00012628,2]
[335946345,1724635843411,-665.0,0.00012628,2]
[335946346,1724635843421,-500.0,0.00012628,2]
[335946347,1724635843430,-500.0,0.00012628,2]
[335946358,1724635843648,-500.0,0.00012628,2]
[335946360,1724635843658,-500.0,0.00012628,2]
[335946362,1724635843668,-500.0,0.00012628,2]
[335946364,1724635843678,-563.81,0.00012628,2]
[335946366,1724635843687,-500.0,0.00012628,2]
[335946368,1724635843697,-566.8,0.00012628,2]
[335946370,1724635843707,-500.0,0.00012628,2]
[335946372,1724635843716,-500.0,0.00012628,2]
[335946374,1724635843728,-512.48,0.00012628,2]
[335946376,1724635843739,-536.4,0.00012628,2]
[335946378,1724635843749,-500.0,0.00012628,2]
[335946380,1724635843759,-800.09,0.00012628,2]
[335946382,1724635843769,-500.0,0.00012628,2]
[335946384,1724635843778,-427.01977796,0.00012628,2]
[335946386,1724635843787,-513.72,0.00012628,2]
[335946388,1724635843796,-500.0,0.00012628,2]
[335946390,1724635843806,-945.16,0.00012628,2]
[335946392,1724635843815,-551.27553974,0.00012628,2]
[335946394,1724635843824,-500.0,0.00012628,2]
[335946396,1724635843834,-500.0,0.00012628,2]
[335946398,1724635843843,-591.61,0.00012628,2]
[335946400,1724635843852,-1372.33,0.00012628,2]
[335946402,1724635843862,-500.0,0.00012628,2]
[335946404,1724635843872,-500.0,0.00012628,2]
[335946406,1724635843881,-732.36,0.00012628,2]
[335946408,1724635843890,-1085.06,0.00012628,2]
[335946410,1724635843900,-500.0,0.00012628,2]
[335946412,1724635843910,-677.71,0.00012628,2]
[335946414,1724635843921,-11388.18,0.00012628,2]
[335946416,1724635843930,-500.0,0.00012628,2]
[335946418,1724635843939,-1170.89,0.00012628,2]
[335946421,1724635843949,-504.68,0.00012628,2]
[335946423,1724635843959,-816.74,0.00012628,2]
[335946425,1724635843969,-2330.6,0.00012628,2]
[335946426,1724635843978,-500.0,0.00012628,2]
[335946429,1724635843987,-500.0,0.00012628,2]
[335946431,1724635843997,-500.0,0.00012628,2]
[335946433,1724635844006,-6089.86,0.00012628,2]
[335946435,1724635844015,-500.0,0.00012628,2]
[335946437,1724635844026,-500.0,0.00012628,2]
[335946438,1724635844035,-536.93915073,0.00012628,2]
[335946441,1724635844045,-500.0,0.00012628,2]
[335946443,1724635844055,-500.0,0.00012628,2]
[335946445,1724635844066,-500.0,0.00012628,2]
[335946447,1724635844075,-500.0,0.00012628,2]
[335946449,1724635844084,-554.23,0.00012628,2]
[335946451,1724635844093,-500.0,0.00012628,2]
[335946453,1724635844102,-816.21,0.00012628,2]
[335946455,1724635844111,-500.0,0.00012628,2]
[335946457,1724635844120,-719.48,0.00012628,2]
[335946459,1724635844130,-500.0,0.00012628,2]
[335946461,1724635844139,-500.0,0.00012628,2]
[335946463,1724635844148,-500.0,0.00012628,2]
[335946465,1724635844162,-698.27,0.00012628,2]
[335946467,1724635844172,-500.0,0.00012628,2]
[335946470,1724635844183,-500.0,0.00012628,2]
[335946472,1724635844196,-500.0,0.00012628,2]
[335946474,1724635844208,-510.93,0.00012628,2]
[335946476,1724635844220,-500.0,0.00012628,2]
[335946478,1724635844231,-500.0,0.00012628,2]
[335946480,1724635844240,-500.0,0.00012628,2]
[335946482,1724635844251,-500.40377866,0.00012628,2]
[335946484,1724635844261,-501.21052148,0.00012628,2]
[335946486,1724635844270,-520.52,0.00012628,2]
[335946488,1724635844279,-500.44270736,0.00012628,2]
[335946490,1724635844288,-500.0,0.00012628,2]
[335946492,1724635844297,-2714.26786896,0.00012629,2]
[335946494,1724635844306,-538.20058823,0.00012673,2]
[335946496,1724635844316,-552.93,0.00012693,2]
[335946498,1724635844325,-500.0,0.00012693,2]
[335946500,1724635844336,-918.65,0.00012693,2]
[335946502,1724635844345,-908.88,0.00012693,2]
[335946504,1724635844354,-807.25,0.00012693,2]
[335946506,1724635844364,-573.15,0.00012703,2]
[335946508,1724635844373,-10720.87,0.00012703,2]
[335946510,1724635844382,-582.96,0.00012703,2]
[335946512,1724635844391,-594.71,0.00012703,2]
[335946514,1724635844401,-600.6,0.00012703,2]
[335946516,1724635844410,-3597.64,0.00012703,2]
[335946518,1724635844419,-12700.56,0.00012703,2]
[335946520,1724635844430,-3367.4,0.00012703,2]
[335946522,1724635844439,-943.99,0.00012703,2]
[335946524,1724635844449,-744.42,0.00012703,2]
[335946526,1724635844458,-1159.55,0.00012703,2]
[335946528,1724635844468,-151.0,0.00012703,2]
[335946530,1724635844477,-151.0,0.00012703,2]
[335946532,1724635844486,-608.28,0.00012703,2]
[335946534,1724635844495,-5066.95,0.00012703,2]
[335946536,1724635844504,-1941.44,0.00012703,2]
[335946538,1724635844513,-11202.9,0.00012703,2]
[335946540,1724635844523,-609.91,0.00012703,2]
[335946542,1724635844533,-540.86,0.00012703,2]
[335946544,1724635844543,-2827.99,0.00012703,2]
[335946546,1724635844552,-650.82,0.00012703,2]
[335946548,1724635844561,-986.55,0.00012703,2]
[335946550,1724635844570,-500.0,0.00012703,2]
[335946552,1724635844579,-500.0,0.00012703,2]
[335946553,1724635844588,-294.04419169,0.00012703,2]
[335946555,1724635844598,-951.6,0.00012703,2]
[335946557,1724635844607,-669.65,0.00012703,2]
[335946559,1724635844617,-13844.90498339,0.00012713,5]
[335946561,1724635844626,-1181.59,0.00012713,2]
[335946563,1724635844636,-521.79,0.00012713,2]
[335946565,1724635844646,-812.87,0.00012713,2]
[335946567,1724635844655,-500.0,0.00012713,2]
[335946569,1724635844664,-610.6,0.00012713,2]
[335946571,1724635844674,-500.0,0.00012713,2]
[335946573,1724635844683,-500.0,0.00012713,2]
[335946575,1724635844692,-500.0,0.00012713,2]
[335946577,1724635844702,-500.0,0.00012713,2]
[335946579,1724635844711,-500.0,0.00012713,2]
[335946581,1724635844721,-500.0,0.00012713,2]
[335946583,1724635844730,-1137.04,0.00012713,2]
[335946585,1724635844739,-1222.29,0.00012713,2]
[335946587,1724635844748,-500.0,0.00012713,2]
[335946589,1724635844758,-867.6,0.00012713,2]
[335946591,1724635844767,-925.48,0.00012713,2]
[335946593,1724635844776,-565.37,0.00012713,2]
[335946595,1724635844786,-659.12,0.00012713,2]
[335946597,1724635844795,-732.5,0.00012713,2]
[335946599,1724635844805,-415.01,0.00012713,2]
[335946601,1724635844814,-500.0,0.00012713,2]
[335946603,1724635844823,-829.94,0.00012713,2]
[335946605,1724635844833,-947.7,0.00012713,2]
[335946607,1724635844843,-500.0,0.00012713,2]
[335946610,1724635844852,-500.0,0.00012713,2]
[335946611,1724635844861,-1166.56,0.00012713,2]
[335946613,1724635844871,-638.51,0.00012713,2]
[335946615,1724635844880,-500.0,0.00012713,2]
[335946616,1724635844889,-1106.17,0.00012713,2]
[335946617,1724635844899,-500.0,0.00012713,2]
[335946618,1724635844909,-500.0,0.00012713,2]
[335946619,1724635844920,-697.23,0.00012713,2]
[335946620,1724635844930,-500.0,0.00012713,2]
[335946621,1724635844939,-569.01,0.00012713,2]
[335946622,1724635844948,-858.05,0.00012713,2]
[335946623,1724635844958,-500.0,0.00012713,2]
[335946624,1724635844968,-500.0,0.00012713,2]
[335946625,1724635844977,-661.53,0.00012713,2]
[335946626,1724635844986,-500.0,0.00012713,2]
[335946627,1724635844995,-840.38,0.00012713,2]
[335946628,1724635845005,-500.0,0.00012713,2]
[335946629,1724635845014,-981.8,0.00012713,2]
[335946630,1724635845024,-512.08,0.00012713,2]
[335946631,1724635845033,-520.36,0.00012713,2]
[335946632,1724635845043,-609.63,0.00012713,2]
[335946633,1724635845052,-574.52,0.00012713,2]
[335946634,1724635845062,-826.15,0.00012713,2]
[335946635,1724635845071,-807.29,0.00012713,2]
[335946636,1724635845080,-1829.89,0.00012713,2]
[335946637,1724635845089,-530.47,0.00012713,2]
[335946638,1724635845099,-817.67,0.00012713,2]
[335946639,1724635845109,-500.0,0.00012713,2]
[335946640,1724635845118,-531.7,0.00012713,2]
[335946641,1724635845128,-500.0,0.00012713,2]
[335946642,1724635845137,-716.93,0.00012713,2]
[335946643,1724635845147,-1475.7,0.00012713,2]
[335946644,1724635845158,-856.83,0.00012713,2]
[335946645,1724635845170,-1292.38,0.00012713,2]
[335946646,1724635845180,-500.0,0.00012713,2]
[335946647,1724635845189,-500.0,0.00012713,2]
[335946648,1724635845198,-686.58,0.00012713,2]
[335946649,1724635845208,-500.0,0.00012713,2]
[335946650,1724635845218,-500.0,0.00012713,2]
[335946651,1724635845227,-500.0,0.00012713,2]
[335946652,1724635845240,-500.0,0.00012713,2]
[335946653,1724635845250,-814.71,0.00012713,2]
[335946654,1724635845259,-665.94,0.00012713,2]
[335946655,1724635845270,-1009.07,0.00012713,2]
[335946656,1724635845279,-500.0,0.00012713,2]
[335946657,1724635845289,-2923.44,0.00012713,2]
[335946658,1724635845298,-500.0,0.00012713,2]
[335946659,1724635845307,-500.0,0.00012713,2]
[335946660,1724635845316,-500.0,0.00012713,2]
[335946661,1724635845325,-500.0,0.00012713,2]
[335946662,1724635845335,-500.0,0.00012713,2]
[335946663,1724635845344,-1143.43,0.00012713,2]
[335946664,1724635845353,-500.0,0.00012713,2]
[335946665,1724635845362,-558.61,0.00012713,2]
[335946666,1724635845371,-823.88,0.00012713,2]
[335946667,1724635845380,-913.32,0.00012713,2]
[335946668,1724635845389,-702.34,0.00012713,2]
[335946669,1724635845398,-500.0,0.00012713,2]
[335946670,1724635845407,-500.0,0.00012713,2]
[335946671,1724635845416,-779.49,0.00012713,2]
[335946672,1724635845426,-696.12,0.00012713,2]
[335946673,1724635845435,-1387.33,0.00012713,2]
[335946674,1724635845445,-500.0,0.00012713,2]
[335946675,1724635845454,-1093.92,0.00012713,2]
[335946676,1724635845465,-500.0,0.00012713,2]
[335946677,1724635845475,-978.65,0.00012713,2]
[335946678,1724635845485,-500.0,0.00012713,2]
[335946679,1724635845495,-651.81,0.00012713,2]
[335946680,1724635845504,-4901.1,0.00012713,2]
[335946681,1724635845513,-500.0,0.00012713,2]
[335946682,1724635845522,-500.0,0.00012713,2]
[335946683,1724635845531,-554.43,0.00012713,2]
[335946684,1724635845540,-918.57,0.00012713,2]
[335946685,1724635845551,-648.41,0.00012714,2]
[335946686,1724635845560,-560.45,0.00012714,2]
[335946687,1724635845570,-1097.76,0.00012714,2]
[335946688,1724635845579,-500.0,0.00012714,2]
[335946689,1724635845588,-814.49,0.00012714,2]
[335946690,1724635845598,-606.17,0.00012714,2]
[335946691,1724635845607,-500.0,0.00012714,2]
[335946692,1724635845616,-500.0,0.00012714,2]
[335946693,1724635845625,-776.14,0.00012714,2]
[335946694,1724635845635,-500.0,0.00012714,2]